bitfinex/quotes_ETHUSD_20230116
["timestamp","ask_amount","ask_price","bid_price","bid_amount"]
[1673870039411,1.29504116,1544.8,1544.7,0.08661953]
[1673870041979,2.26351228,1544.8,1544.7,0.08661953]
[1673870042410,0.11304116,1544.8,1544.7,6.56035953]
[1673870044094,1.08151228,1544.8,1544.7,6.56035953]
[1673870044243,0.11304116,1544.8,1544.7,13.03409953]
[1673870045928,1.08151228,1544.8,1544.7,13.03409953]
[1673870046995,0.96847112,1544.8,1544.7,19.50783953]
[1673870048190,2.58727897,1544.9,1544.7,19.50783953]
[1673870048508,0.96895357,1544.8,1544.7,19.50783953]
[1673870048709,0.96899331,1544.8,1544.7,19.50783953]
[1673870048887,0.96898995,1544.8,1544.7,19.50783953]
[1673870049110,2.58727897,1544.9,1544.7,19.50783953]
[1673870049467,0.96900884,1544.9,1544.7,21.91770496]
[1673870049610,12.80842171,1545.0,1544.7,21.91770496]
[1673870049819,0.96904152,1544.9,1544.7,21.91770496]
[1673870050060,4.52552171,1545.0,1544.9,19.41873]
[1673870050976,5.49488154,1545.0,1544.9,19.41873]
[1673870051731,4.04213647,1545.0,1544.9,19.41873]
[1673870052552,5.49488154,1545.0,1544.9,19.41873]
[1673870052794,4.52552171,1545.0,1544.9,19.41873]
[1673870053556,5.49469968,1545.0,1544.9,19.41873]
[1673870054926,4.04195461,1545.0,1544.9,19.41873]
[1673870061403,5.49469968,1545.0,1544.9,19.41873]
[1673870066481,4.04195461,1545.0,1544.9,19.41873]
[1673870069719,4.04128897,1545.0,1544.9,19.41873]
[1673870070285,3.07277664,1545.0,1544.9,19.4153352]
[1673870072449,4.04128897,1545.0,1544.9,19.4153352]
[1673870073571,3.07277664,1545.0,1544.9,19.4153352]
[1673870074163,4.04128897,1545.0,1544.9,19.4153352]
[1673870076404,3.07277664,1545.0,1544.9,19.4153352]
[1673870077717,4.04128897,1545.0,1544.9,19.4153352]
[1673870082865,3.07277664,1545.0,1544.9,19.4153352]
[1673870084581,3.07277664,1545.0,1544.9,21.02171177]
[1673870085020,4.04206966,1545.0,1544.9,19.4153352]
[1673870085197,3.07277664,1545.0,1544.9,19.4153352]
[1673870085575,3.07277664,1545.0,1544.9,21.02173117]
[1673870086611,4.04261788,1545.0,1544.9,21.02173117]
[1673870086824,3.07277664,1545.0,1544.9,21.02173117]
[1673870087357,4.04261192,1545.0,1544.9,21.02173117]
[1673870087663,3.07277664,1545.0,1544.9,21.02173117]
[1673870088596,4.04291373,1545.0,1544.9,21.02173117]
[1673870088800,4.04291288,1545.0,1544.9,21.02173117]
[1673870089033,4.04291197,1545.0,1544.9,21.02173117]
[1673870089248,3.07277664,1545.0,1544.9,21.02173117]
[1673870089455,4.04293877,1545.0,1544.9,21.02173117]
[1673870089611,4.04293705,1545.0,1544.9,21.02173117]
[1673870089820,3.07277664,1545.0,1544.9,21.02173117]
[1673870090147,4.04289392,1545.0,1544.9,21.02173117]
[1673870090363,4.04291051,1545.0,1544.9,21.02173117]
[1673870090589,3.07277664,1545.0,1544.9,21.02173117]
[1673870090757,4.04308646,1545.0,1544.9,21.02173117]
[1673870090975,4.04307605,1545.0,1544.9,21.02173117]
[1673870091228,3.07277664,1545.0,1544.9,21.02173117]
[1673870091811,5.94837736,1545.0,1544.9,19.4153352]
[1673870092022,4.97807388,1545.0,1544.9,19.4153352]
[1673870101917,5.94858219,1545.0,1544.9,19.4153352]
[1673870102371,4.97807388,1545.0,1544.9,19.4153352]
[1673870102879,5.94862543,1545.0,1544.9,19.4153352]
[1673870103051,5.49607326,1545.0,1544.9,19.4153352]
[1673870103704,3.07277664,1545.0,1544.9,21.02176756]
[1673870103897,4.04334227,1545.0,1544.9,21.02176756]
[1673870104141,3.07277664,1545.0,1544.9,21.02176756]
[1673870104476,3.07277664,1545.0,1544.9,19.4153352]
[1673870104667,4.04338885,1545.0,1544.9,19.4153352]
[1673870104874,4.04338859,1545.0,1544.9,19.4153352]
[1673870105092,4.04338945,1545.0,1544.9,19.4153352]
[1673870105280,4.04338925,1545.0,1544.9,19.4153352]
[1673870105489,4.04338925,1545.0,1544.9,25.45243105]
[1673870105490,4.04338158,1545.0,1544.9,25.45243105]
[1673870105825,3.07277664,1545.0,1544.9,29.9236794]
[1673870106368,0.97043378,1545.3,1545.1,2.67690021]
[1673870106681,2.42317885,1545.4,1545.2,24.6894268]
[1673870106898,2.42317885,1545.4,1545.3,14.44646]
[1673870107211,2.42317885,1545.4,1545.3,14.67646]
[1673870108608,0.97043378,1545.4,1545.3,21.14769]
[1673870108885,0.97043378,1545.4,1545.3,24.42047678]
[1673870109102,2.42317885,1545.5,1545.3,27.53645846]
[1673870109272,2.42317885,1545.5,1545.4,4.228]
[1673870109460,2.42178152,1545.5,1545.4,23.64043]
[1673870110470,0.96903645,1545.5,1545.4,21.14043]
[1673870111011,1.45274507,1545.5,1545.4,19.41243]
[1673870112320,2.42107712,1545.5,1545.4,19.41243]
[1673870113961,3.02107712,1545.5,1545.4,19.41243]
[1673870114085,2.05274507,1545.5,1545.4,19.41243]
[1673870114567,3.02092212,1545.5,1545.4,19.41243]
[1673870115138,2.42092212,1545.5,1545.4,19.41243]
[1673870116193,2.42079531,1545.5,1545.4,19.41243]
[1673870119568,0.96805024,1545.5,1545.4,19.41243]
[1673870119779,0.96805024,1545.5,1545.4,22.000796]
[1673870122976,0.96805024,1545.5,1545.4,22.230796]
[1673870124552,2.51875157,1545.6,1545.4,22.230796]
[1673870124912,2.51875157,1545.6,1545.4,23.731796]
[1673870124913,1.0660065,1545.6,1545.4,23.731796]
[1673870125172,1.0660065,1545.6,1545.5,21.7843496]
[1673870125382,0.09795626,1545.6,1545.5,21.7843496]
[1673870125574,0.09795626,1545.6,1545.5,23.2883496]
[1673870125975,0.09795626,1545.6,1545.5,23.5183496]
[1673870126168,0.09795626,1545.6,1545.5,26.79113638]
[1673870128478,0.09795626,1545.6,1545.5,26.79733846]
[1673870130810,0.09795626,1545.6,1545.5,26.79474194]
[1673870133836,0.09795626,1545.6,1545.5,22.01795516]
[1673870134050,0.09795626,1545.6,1545.5,19.64117]
[1673870136579,0.09795626,1545.6,1545.5,22.91395678]
[1673870138090,0.09795626,1545.6,1545.5,22.92015886]
[1673870141039,1.0660065,1545.6,1545.5,22.92015886]
[1673870141984,1.95936957,1545.6,1545.5,22.92015886]
[1673870144475,2.4440644,1545.6,1545.5,22.92015886]
[1673870144873,3.41331834,1545.6,1545.5,22.92015886]
[1673870145079,2.4440644,1545.6,1545.5,22.92015886]
[1673870145559,2.92831275,1545.6,1545.5,19.64117]
[1673870145732,2.92831275,1545.6,1545.5,19.41117]
[1673870147026,5.89615628,1545.6,1545.5,19.41117]
[1673870148996,5.89615628,1545.6,1545.5,6.47039]
[1673870148997,3.95916286,1545.6,1545.5,6.47039]
[1673870149233,5.89807462,1545.6,1545.5,6.47039]
[1673870149447,3.95916286,1545.6,1545.5,6.47039]
[1673870149879,4.44486286,1545.6,1545.4,19.41225]
[1673870150186,6.42591786,1545.5,1545.4,19.41225]
[1673870152453,4.00243807,1545.5,1545.4,19.41225]
[1673870152653,4.00243807,1545.5,1545.4,19.40902382]
[1673870152868,6.42591786,1545.5,1545.4,19.40902382]
[1673870153752,4.00243807,1545.5,1545.4,19.40902382]
[1673870153986,6.42591786,1545.5,1545.4,19.40902382]
[1673870154343,4.00243807,1545.5,1545.4,19.40902382]
[1673870155518,2.82043807,1545.5,1545.4,19.40902382]
[1673870162797,3.30509608,1545.5,1545.3,6.47103]
[1673870163113,2.21927192,1545.4,1545.3,6.47103]
[1673870163326,2.21927192,1545.4,1545.2,12.94283]
[1673870163485,2.42108242,1545.3,1545.2,19.4143]
[1673870163907,0.96843297,1545.3,1545.2,19.4143]
[1673870165807,2.42108242,1545.4,1545.2,20.9093]
[1673870168111,2.42108242,1545.4,1545.2,22.14824406]
[1673870168993,0.96843297,1545.4,1545.2,22.14824406]
[1673870169825,0.96843297,1545.4,1545.2,25.42103084]
[1673870171203,2.42108242,1545.4,1545.2,25.42103084]
[1673870171416,2.42108242,1545.4,1545.2,24.18208678]
[1673870172118,0.96843297,1545.3,1545.2,20.9093]
[1673870172323,0.96843297,1545.3,1545.2,19.4143]
[1673870173047,0.96843297,1545.3,1545.2,12.94283]
[1673870173414,0.96843297,1545.3,1545.2,6.47141]
[1673870173734,0.96843297,1545.3,1544.9,6.47266]
[1673870173735,8.84428916,1545.3,1544.9,6.47266]
[1673870173892,0.96806637,1545.1,1544.9,12.94532]
[1673870174099,1.21008296,1545.1,1544.9,12.94532]
[1673870174314,1.21008296,1545.1,1544.9,6.47266]
[1673870175304,1.21008296,1545.1,1544.9,6.46881303]
[1673870177670,1.21008296,1545.1,1544.9,12.94172303]
[1673870178441,1.21008296,1545.1,1544.9,6.46881303]
[1673870178666,2.27107467,1545.0,1544.8,15.06289]
[1673870178860,2.27107467,1545.0,1544.8,6.47299]
[1673870179400,1.3030083,1545.0,1544.8,12.94631]
[1673870179723,2.66218251,1545.1,1544.8,19.41963]
[1673870181049,1.21008296,1545.1,1544.8,19.41963]
[1673870181889,1.21008296,1545.1,1544.8,19.31963]
[1673870182247,2.66218251,1545.1,1544.8,19.31963]
[1673870183027,1.21008296,1545.1,1544.8,19.31963]
[1673870184502,2.66218251,1545.1,1544.8,19.31963]
[1673870184862,1.21008296,1545.1,1544.8,19.31963]
[1673870185905,2.66218251,1545.1,1544.8,12.84631]
[1673870186240,1.23428462,1545.0,1544.8,12.84631]
[1673870186448,2.66218251,1545.1,1544.8,19.31963]
[1673870187052,1.21008296,1545.1,1544.8,19.31963]
[1673870187254,0.96806637,1545.1,1544.8,19.31963]
[1673870187468,2.42016592,1545.1,1544.8,19.31963]
[1673870187691,0.96806637,1545.1,1544.8,19.31963]
[1673870188079,0.96806637,1545.1,1544.8,20.82363]
[1673870196096,0.96806637,1545.0,1544.8,20.82363]
[1673870196314,1.45209955,1545.1,1544.8,19.31963]
[1673870196315,2.42016592,1545.1,1544.8,19.31963]
[1673870197112,0.96806637,1545.1,1544.8,19.31963]
[1673870199021,0.96806637,1545.1,1544.8,20.82363]
[1673870199230,0.96806637,1545.1,1544.8,25.03218106]
[1673870199635,11.2161882,1545.2,1544.8,25.03218106]
[1673870199856,11.2161882,1545.2,1544.8,28.30496784]
[1673870200054,11.21206592,1545.2,1544.8,28.30496784]
[1673870200470,11.21206592,1545.2,1544.8,30.71451996]
[1673870200686,11.21206592,1545.2,1545.0,19.41747]
[1673870200897,2.90596592,1545.2,1545.0,19.41747]
[1673870202492,0.96806637,1545.1,1545.0,19.41747]
[1673870203437,2.42016592,1545.2,1545.0,19.41747]
[1673870205311,0.96806637,1545.1,1545.0,19.41747]
[1673870205681,2.42016592,1545.2,1545.0,21.359217]
[1673870205874,0.96806637,1545.2,1545.0,19.41747]
[1673870206378,2.42016592,1545.2,1545.0,19.41747]
[1673870207006,0.96806637,1545.1,1545.0,19.41747]
[1673870211098,2.42016592,1545.1,1545.0,19.41747]
[1673870211781,2.41741128,1545.1,1545.0,19.41747]
[1673870212520,1.45209955,1545.1,1545.0,19.41747]
[1673870212889,3.38932766,1545.1,1545.0,12.94498]
[1673870213103,2.51850886,1545.1,1545.0,6.47249]
[1673870214364,2.51850886,1545.1,1544.9,17.77252]
[1673870214576,1.45407034,1545.0,1544.9,24.24519]
[1673870214786,3.78855637,1545.0,1544.9,6.47267]
[1673870215231,1.85132826,1545.0,1544.9,6.47267]
[1673870215510,3.78855637,1545.0,1544.9,6.47267]
[1673870215721,1.85132826,1545.0,1544.9,6.47267]
[1673870219569,1.45407034,1545.0,1544.9,6.47267]
[1673870219990,1.45407034,1545.0,1544.9,19.41849]
[1673870220510,3.39129845,1545.1,1544.9,19.41849]
[1673870221327,1.45407034,1545.0,1544.9,19.41849]
[1673870221851,2.42326916,1545.0,1544.9,19.41849]
[1673870229297,0.96919882,1545.0,1544.9,19.41849]
[1673870229533,0.96919882,1545.0,1544.9,22.54967887]
[1673870229748,1.45407034,1545.1,1544.9,25.6510617]
[1673870229936,2.42342129,1545.1,1544.9,24.04467887]
[1673870230277,1.45407034,1545.1,1545.0,2.40446789]
[1673870230506,2.42343137,1545.1,1545.0,21.82193789]
[1673870232512,0.96936103,1545.1,1545.0,21.82193789]
[1673870232825,1.93987034,1545.2,1545.0,21.82193789]
[1673870233003,0.96923563,1545.1,1545.0,21.82193789]
[1673870233213,1.93987034,1545.2,1545.0,21.81873728]
[1673870234194,1.93987034,1545.2,1545.0,19.41747]
[1673870234409,0.96917051,1545.1,1545.0,19.41747]
[1673870236874,0.96900228,1545.1,1545.0,19.41747]
[1673870237086,0.96898797,1545.1,1545.0,19.41747]
[1673870237346,1.45407034,1545.2,1545.0,19.41747]
[1673870237716,2.42299875,1545.2,1545.0,19.41747]
[1673870238041,1.45407034,1545.2,1545.0,19.41747]
[1673870238285,2.42300592,1545.2,1545.0,19.41747]
[1673870238797,0.96890049,1545.1,1545.0,19.41747]
[1673870238973,1.6954412,1545.1,1545.0,19.41747]
[1673870241548,2.42294431,1545.2,1545.1,3.92523783]
[1673870241753,0.96887397,1545.2,1545.1,26.84423461]
[1673870244071,0.96887397,1545.3,1545.1,28.45036261]
[1673870244284,2.42294431,1545.4,1545.2,7.37678678]
[1673870244458,0.96887397,1545.4,1545.3,21.65536868]
[1673870245887,2.42294431,1545.5,1545.3,21.65536868]
[1673870246453,0.96887397,1545.4,1545.3,21.65536868]
[1673870247628,2.42294431,1545.5,1545.3,21.65536868]
[1673870248904,0.96887397,1545.4,1545.3,21.65536868]
[1673870249113,0.96887397,1545.4,1545.3,20.15136868]
[1673870249315,0.96887397,1545.4,1545.3,19.41369]
[1673870257510,2.42294431,1545.5,1545.3,19.41369]
[1673870258405,0.96887397,1545.4,1545.3,19.41369]
[1673870258944,2.42294431,1545.5,1545.3,19.41369]
[1673870259161,0.96887397,1545.4,1545.3,19.41369]
[1673870261160,2.42294431,1545.5,1545.3,19.41369]
[1673870262077,0.96887397,1545.4,1545.3,19.41369]
[1673870265045,2.42294431,1545.4,1545.3,19.41369]
[1673870265633,1.45407034,1545.4,1545.3,19.41369]
[1673870268482,2.42208387,1545.4,1545.3,19.41369]
[1673870268692,0.96801353,1545.4,1545.3,19.41369]
[1673870268902,2.42208387,1545.4,1545.3,19.41369]
[1673870272014,2.42208387,1545.4,1545.3,12.94246]
[1673870272397,1.45407034,1545.4,1545.3,12.94246]
[1673870272806,1.79320018,1545.4,1545.2,19.4143]
[1673870273172,1.79320018,1545.4,1545.1,25.28094783]
[1673870273173,3.39129845,1545.3,1545.1,25.28094783]
[1673870273361,0.96821207,1545.2,1545.1,25.28094783]
[1673870273963,2.42228241,1545.2,1545.1,13.18114783]
[1673870274388,0.96821207,1545.2,1545.1,13.18114783]
[1673870275319,2.42228241,1545.2,1545.1,13.18114783]
[1673870275784,0.96821207,1545.2,1545.1,13.18114783]
[1673870275994,2.42228241,1545.2,1545.1,13.18114783]
[1673870276835,2.42240227,1545.2,1545.1,13.17816747]
[1673870277251,0.96833193,1545.2,1545.1,13.17816747]
[1673870279054,0.96833193,1545.2,1545.1,14.17816747]
[1673870279579,2.42240227,1545.2,1545.1,14.17816747]
[1673870283264,1.45407034,1545.2,1545.1,14.17816747]
[1673870283417,0.96859001,1545.2,1545.1,14.17816747]
[1673870283629,2.42266035,1545.2,1545.1,14.17816747]
[1673870284816,0.96859001,1545.2,1545.1,14.17816747]
[1673870285224,2.42266035,1545.2,1545.1,14.17816747]
[1673870291668,4.79587731,1545.2,1545.1,1.23425747]
[1673870291844,2.37321696,1545.2,1545.1,1.23425747]
[1673870292604,4.79669675,1545.2,1545.1,1.23425747]
[1673870293834,11.26834675,1545.2,1545.1,1.23425747]
[1673870294261,8.84486696,1545.2,1545.1,1.23425747]
[1673870294731,16.29269092,1545.2,1545.1,1.23425747]
[1673870296408,22.76434092,1545.2,1545.1,1.23425747]
[1673870296778,23.23916357,1545.2,1545.1,1.23425747]
[1673870297085,2.32391636,1545.1,1544.7,0.08661953]
[1673870297298,0.96727785,1544.8,1544.7,0.08661953]
[1673870299329,0.91727785,1544.8,1544.7,0.08661953]
[1673870300145,14.88282678,1544.9,1544.7,0.08661953]
[1673870300770,1.45091678,1544.8,1544.7,0.08661953]
[1673870300983,8.39408074,1544.8,1544.5,0.11113185]
[1673870301219,7.97916,1544.6,1544.4,0.10030599]
[1673870301443,2.95412101,1544.5,1544.4,0.10030599]
[1673870301762,3.44424329,1544.5,1544.4,0.10030599]
[1673870301912,9.91882329,1544.5,1544.4,0.10030599]
[1673870302121,19.23796884,1544.5,1544.4,0.10030599]
[1673870302386,20.01075562,1544.5,1544.4,0.10030599]
[1673870303088,22.51075562,1544.5,1544.4,0.10030599]
[1673870303297,35.44531133,1544.5,1544.4,0.10030599]
[1673870303484,38.50984515,1544.5,1544.4,0.10030599]
[1673870303907,37.53875988,1544.5,1544.4,0.10030599]
[1673870304289,34.95786499,1544.5,1544.4,0.10030599]
[1673870304596,41.43244499,1544.5,1544.4,0.10030599]
[1673870306127,44.98533562,1544.5,1544.4,0.10030599]
[1673870307968,42.48533562,1544.5,1544.4,0.10030599]
[1673870308332,37.48533562,1544.5,1544.4,0.10030599]
[1673870310542,32.46169199,1544.4,1544.3,0.11113185]
[1673870310752,41.0609685,1544.4,1544.3,0.11113185]
[1673870311338,40.09903117,1544.4,1544.3,0.11113185]
[1673870312157,39.45269199,1544.4,1544.3,0.11113185]
[1673870312482,40.09903117,1544.4,1544.3,0.11113185]
[1673870314751,38.59503117,1544.4,1544.3,0.11113185]
[1673870315692,37.09003117,1544.4,1544.3,0.11113185]
[1673870316270,34.59003117,1544.4,1544.3,0.11113185]
[1673870319857,30.83124439,1544.4,1544.3,0.11113185]
[1673870320012,9.475,1544.4,1544.3,0.11113185]
[1673870325497,9.475,1544.4,1544.3,0.05674448]
[1673870325698,3.0,1544.4,1544.3,0.05674448]
[1673870326056,11.524,1544.6,1544.3,7.72016448]
[1673870326207,3.0,1544.6,1544.3,7.72016448]
[1673870326418,9.47419,1544.6,1544.3,7.72016448]
[1673870326681,9.47419,1544.6,1544.3,0.05674448]
[1673870326897,9.47419,1544.6,1544.3,6.53215448]
[1673870328678,3.0,1544.6,1544.3,19.48299448]
[1673870328887,25.04154651,1544.7,1544.3,22.26229377]
[1673870328888,1.13223918,1544.7,1544.3,22.26229377]
[1673870329043,0.4859,1544.8,1544.5,14.45185]
[1673870329254,8.56730651,1544.9,1544.5,12.94885]
[1673870330571,15.04036651,1544.9,1544.5,12.94885]
[1673870330784,16.48747588,1544.9,1544.5,12.94885]
[1673870330945,7.43531733,1544.8,1544.4,24.2463]
[1673870331384,8.08165651,1544.8,1544.4,24.2463]
[1673870332025,14.55528651,1544.8,1544.4,24.2463]
[1673870332234,0.96193733,1544.7,1544.4,11.2967]
[1673870332452,12.94832,1544.6,1544.4,11.2967]
[1673870333047,6.47416,1544.6,1544.4,11.2967]
[1673870333412,7.43590733,1544.7,1544.4,17.77163]
[1673870334149,8.8830167,1544.7,1544.4,17.77163]
[1673870334376,11.8904201,1544.7,1544.4,17.77163]
[1673870334512,18.3644101,1544.7,1544.4,11.2967]
[1673870334723,0.96193733,1544.6,1544.4,11.2967]
[1673870334982,7.43612733,1544.6,1544.4,11.2967]
[1673870336258,8.8832367,1544.6,1544.4,11.2967]
[1673870337069,8.8832367,1544.6,1544.4,9.2967]
[1673870337283,9.72071769,1544.6,1544.4,9.2967]
[1673870337707,16.19490769,1544.6,1544.4,9.2967]
[1673870338203,0.96193733,1544.5,1544.4,9.2967]
[1673870338879,0.96193733,1544.5,1544.3,0.05674448]
[1673870340200,0.96193733,1544.5,1544.3,6.53210448]
[1673870343360,2.04371657,1544.5,1544.3,6.53210448]
[1673870344185,3.49082594,1544.5,1544.3,6.53210448]
[1673870344396,3.49082594,1544.5,1544.3,0.05674448]
[1673870344397,11.89997165,1544.5,1544.3,0.05674448]
[1673870344658,2.41310154,1544.4,1544.3,0.05674448]
[1673870344818,4.25096219,1544.4,1544.3,0.05674448]
[1673870345238,10.72596219,1544.4,1544.3,0.05674448]
[1673870345452,4.25096219,1544.4,1544.3,0.05674448]
[1673870345675,2.80385282,1544.4,1544.3,0.05674448]
[1673870347513,0.96599217,1544.4,1544.3,0.05674448]
[1673870347730,2.41310154,1544.4,1544.3,0.05674448]
[1673870347865,1.44710937,1544.4,1544.3,0.05674448]
[1673870348079,7.92210937,1544.4,1544.3,0.05674448]
[1673870348548,7.92210937,1544.4,1544.3,0.04228855]
[1673870348764,10.55270727,1544.4,1544.3,0.04228855]
[1673870348921,4.07770727,1544.4,1544.3,0.04228855]
[1673870350388,10.55270727,1544.4,1544.3,0.04228855]
[1673870350611,40.55270727,1544.4,1544.3,0.04228855]
[1673870350829,42.48726298,1544.4,1544.3,0.04228855]
[1673870351657,41.53027589,1544.4,1544.3,0.04228855]
[1673870354023,41.04427589,1544.4,1544.3,0.04228855]
[1673870354418,47.51927589,1544.4,1544.3,0.04228855]
[1673870355593,49.93747053,1544.4,1544.3,0.04228855]
[1673870355807,57.7507016,1544.4,1544.3,0.04228855]
[1673870356141,58.2367016,1544.4,1544.3,0.04228855]
[1673870356284,59.7377016,1544.4,1544.3,0.04228855]
[1673870356951,57.31950696,1544.4,1544.3,0.04228855]
[1673870357391,57.96584614,1544.4,1544.3,0.04228855]
[1673870357919,59.45984614,1544.4,1544.3,0.04228855]
[1673870358144,62.45984614,1544.4,1544.3,0.04228855]
[1673870358495,70.35814858,1544.4,1544.3,0.04228855]
[1673870358814,67.45984614,1544.4,1544.3,0.04228855]
[1673870359045,66.23478361,1544.4,1544.3,0.04228855]
[1673870359251,59.75978361,1544.4,1544.3,0.04228855]
[1673870359460,50.01199683,1544.4,1544.3,0.04228855]
[1673870359728,51.94502681,1544.4,1544.3,0.04228855]
[1673870359881,44.52875016,1544.4,1544.3,0.04228855]
[1673870360079,41.52875016,1544.4,1544.3,0.04228855]
[1673870360976,51.75978361,1544.4,1544.3,0.04228855]
[1673870361381,58.23478361,1544.4,1544.3,0.04228855]
[1673870361592,51.75978361,1544.4,1544.3,0.04228855]
[1673870364775,53.69267042,1544.4,1544.3,0.04228855]
[1673870369285,53.20667042,1544.4,1544.3,0.04228855]
[1673870371017,53.20667042,1544.4,1544.3,0.03981273]
[1673870371396,51.27378361,1544.4,1544.3,0.03981273]
[1673870373236,53.20719194,1544.4,1544.3,0.03981273]
[1673870376320,51.27378361,1544.4,1544.3,0.03981273]
[1673870380103,48.85750696,1544.4,1544.3,0.03981273]
[1673870380313,51.27550146,1544.4,1544.3,0.03981273]
[1673870380525,48.85750696,1544.4,1544.3,0.03981273]
[1673870380848,52.34350696,1544.4,1544.3,0.03981273]
[1673870382396,55.2418094,1544.4,1544.3,0.03981273]
[1673870382624,62.36314858,1544.4,1544.3,0.03981273]
[1673870384415,64.35360947,1544.4,1544.3,0.03981273]
[1673870384848,72.35360947,1544.4,1544.3,0.03981273]
[1673870385000,74.07660947,1544.4,1544.3,0.03981273]
[1673870385413,79.07660947,1544.4,1544.3,0.03981273]
[1673870385865,93.07660947,1544.4,1544.3,0.03981273]
[1673870386299,100.54227029,1544.4,1544.3,0.03981273]
[1673870386464,106.04804614,1544.4,1544.3,0.02523932]
[1673870387409,108.13696295,1544.4,1544.3,0.02523932]
[1673870390781,108.29907825,1544.4,1544.3,0.02523932]
[1673870391535,103.41316144,1544.4,1544.3,0.02523932]
[1673870391958,106.79640733,1544.4,1544.3,0.02523932]
[1673870393472,106.79640733,1544.4,1544.2,0.11487841]
[1673870393473,12.9526,1544.1,1543.7,1.495]
[1673870393664,0.96625832,1543.9,1543.7,1.495]
[1673870394592,7.44337832,1543.9,1543.7,1.495]
[1673870395572,0.96625832,1543.9,1543.7,14.45084]
[1673870395745,0.96625832,1543.9,1543.8,1.505]
[1673870396203,2.4156458,1544.0,1543.8,1.505]
[1673870396413,2.4156458,1544.0,1543.8,14.46004]
[1673870396571,0.96625832,1544.0,1543.8,14.46004]
[1673870400373,2.4156458,1544.0,1543.8,7.98252]
[1673870400585,0.96625832,1543.9,1543.8,7.98252]
[1673870400821,2.4156458,1544.0,1543.8,7.98252]
[1673870401196,0.96625832,1543.9,1543.8,7.98252]
[1673870403242,0.96625832,1543.9,1543.8,1.505]
[1673870403457,2.65689417,1543.9,1543.7,7.97471]
[1673870403671,0.96593201,1543.8,1543.7,7.97471]
[1673870404663,0.96593201,1543.8,1543.7,1.497]
[1673870405403,2.41531949,1543.8,1543.7,1.497]
[1673870405817,0.96593201,1543.8,1543.7,1.497]
[1673870406032,7.87823562,1543.8,1543.7,1.497]
[1673870406278,7.87823562,1543.8,1543.6,1.505]
[1673870406687,1.40071562,1543.8,1543.6,1.505]
[1673870407534,0.96593201,1543.9,1543.7,1.501]
[1673870407747,2.41944177,1544.0,1543.7,14.45663]
[1673870407983,0.96593201,1544.0,1543.9,12.9542]
[1673870408194,0.96593201,1544.0,1543.9,14.4592]
[1673870408511,0.96593201,1544.0,1543.9,7.9821]
[1673870409431,0.96593201,1544.0,1543.9,1.505]
[1673870409677,13.37257653,1544.0,1543.7,1.505]
[1673870409814,0.96547958,1543.8,1543.7,1.505]
[1673870410604,0.96547958,1543.8,1543.6,1.49]
[1673870412549,8.89134895,1543.8,1543.6,1.49]
[1673870412822,0.96547958,1543.7,1543.5,13.41930757]
[1673870412969,0.96547958,1543.7,1543.5,1.64250757]
[1673870413558,0.91547958,1543.7,1543.5,8.12123757]
[1673870415497,10.2072903,1543.8,1543.5,14.60001757]
[1673870416173,3.7296403,1543.8,1543.5,14.60001757]
[1673870417276,2.28142093,1543.8,1543.5,13.09501757]
[1673870417953,1.44821937,1543.8,1543.5,13.09501757]
[1673870418173,21.84927916,1543.9,1543.7,1.49]
[1673870418174,1.44821937,1543.9,1543.7,1.49]
[1673870418375,4.44821937,1543.9,1543.7,7.9677]
[1673870418591,1.44821937,1543.9,1543.7,14.44564]
[1673870418818,1.44821937,1543.9,1543.7,20.92358]
[1673870419516,3.37917853,1543.9,1543.7,14.44564]
[1673870419762,1.44821937,1543.9,1543.7,14.44564]
[1673870420184,5.325054,1543.9,1543.7,1.49]
[1673870420401,1.44821937,1543.8,1543.7,1.49]
[1673870420787,11.802264,1543.9,1543.7,1.49]
[1673870420995,2.05226722,1543.9,1543.7,7.96791]
[1673870421233,1.44821937,1543.9,1543.7,14.44585]
[1673870423521,0.96734369,1543.8,1543.7,14.44585]
[1673870425036,0.96353896,1543.8,1543.7,14.44585]
[1673870425764,0.96353896,1543.8,1543.7,14.46385]
[1673870428446,3.38330081,1544.0,1543.7,20.94179]
[1673870428652,3.37917853,1544.0,1543.8,4.97153896]
[1673870428911,1.44821937,1544.0,1543.9,20.9393]
[1673870429132,12.21227853,1544.1,1543.9,23.5303839]
[1673870430159,10.28131937,1544.1,1543.9,23.5303839]
[1673870430978,12.21227853,1544.1,1543.9,23.5303839]
[1673870431347,12.21227853,1544.1,1543.9,20.9393]
[1673870432024,1.44821937,1544.1,1543.9,20.9393]
[1673870433972,3.37917853,1544.1,1543.9,20.9393]
[1673870434120,1.44821937,1544.1,1543.9,20.9393]
[1673870434958,0.96739443,1544.0,1543.9,20.9393]
[1673870436129,0.96739443,1544.0,1543.9,19.4313]
[1673870436873,0.96739443,1544.0,1543.9,23.7773209]
[1673870437098,0.96739443,1544.1,1543.9,23.7773209]
[1673870437328,3.37917853,1544.2,1544.0,1.508]
[1673870437329,2.4156138,1544.2,1544.0,1.508]
[1673870437714,2.4156138,1544.2,1544.1,20.93678]
[1673870437923,2.4156138,1544.2,1544.1,23.280458]
[1673870438178,0.96739443,1544.2,1544.1,23.280458]
[1673870438559,0.96739443,1544.2,1544.1,12.95252]
[1673870438774,0.96739443,1544.2,1544.1,20.93678]
[1673870442283,11.3993138,1544.3,1544.1,20.93678]
[1673870442500,11.3993138,1544.3,1544.2,1.508]
[1673870442673,2.4156138,1544.3,1544.2,7.98384]
[1673870443031,2.4156138,1544.3,1544.2,20.93552]
[1673870443184,0.96739443,1544.3,1544.2,23.029072]
[1673870444284,2.5777291,1544.4,1544.2,23.029072]
[1673870444456,2.5777291,1544.4,1544.2,20.93552]
[1673870447089,0.96739443,1544.3,1544.2,19.42752]
[1673870447712,2.5777291,1544.4,1544.2,19.42752]
[1673870448244,1.12950973,1544.4,1544.2,19.42752]
[1673870451441,2.5777291,1544.4,1544.2,19.42752]
[1673870453340,2.5777291,1544.4,1544.2,6.47584]
[1673870453489,0.96739443,1544.3,1544.2,6.47584]
[1673870455592,0.96739443,1544.3,1544.2,12.95168]
[1673870456011,0.96739443,1544.3,1544.2,6.47584]
[1673870456221,2.4156138,1544.3,1544.2,6.47584]
[1673870456486,1.41826326,1544.3,1544.1,25.93256]
[1673870456645,0.96739443,1544.2,1544.1,11.4755]
[1673870456851,2.4156138,1544.2,1544.0,6.47646]
[1673870457065,0.96657256,1544.1,1544.0,6.47646]
[1673870457396,1.20805175,1544.1,1543.9,20.33441]
[1673870457798,1.20805175,1544.1,1543.9,12.95391]
[1673870458014,2.65627112,1544.1,1543.9,6.47687]
[1673870458255,0.96657256,1544.0,1543.9,6.47687]
[1673870459270,0.96657256,1544.0,1543.8,15.42600896]
[1673870459536,1.41965726,1543.9,1543.8,0.96353896]